Cogmind - Beta 10.2 @@@ ROGUE MODE // 2021.03.02 @ 22:12:10 Player: eldritch Result: Self-destructed Performance ------------- Evolutions (1) 500 Regions Visited (3) 600 Robots Destroyed (44) 220 Value Destroyed (965) 965 Prototype IDs (2) 40 Alien Tech Used (0) 0 Bonus (169) 169 TOTAL SCORE: 2494 Bonus ------- High Alert Combat Kills 2 Follower Combat Kills 167 Cogmind --------- Core Integrity 269/400 Matter 236/300 Energy 265/265 System Corruption 0% Temperature Cool (0) Movement Treading (180) Ox1 Location -9/Materials Parts ------- > --- POWER (1) -------- Improved Ion Engine > --- PROPULSION (3) --- Light Treads Light Treads Light Treads > --- UTILITY (2) ------ Large Storage Unit High-capacity Storage Unit > --- WEAPON (3) ------- Improved EM Shotgun Assault Rifle Heavy Assault Rifle > --- INVENTORY (18) --- Improved Ion Engine Light Nuclear Core Light Nuclear Core Light Treads Armored Wheel Armored Wheel Armored Wheel Armored Wheel Combat Airjet Improved Heat Sink Visual Processing Unit Improved Sensor Array Advanced Signal Interpreter Transport Network Coupler Light Armor Plating Hacking Suite EM Pulse Cannon Heavy Hammer Peak State ------------ > --- POWER ------------ Improved Ion Engine > --- PROPULSION ------- Light Treads Light Treads Armored Wheel > --- UTILITY ---------- Large Storage Unit High-capacity Storage Unit > --- WEAPON ----------- Assault Rifle Heavy Assault Rifle Improved Assault Rifle > --- INVENTORY -------- Light Nuclear Core Light Nuclear Core Light Treads Light Treads Armored Wheel Armored Wheel Armored Wheel Armored Wheel Combat Airjet Improved Heat Sink Sensor Array Improved Signal Interpreter Transport Network Coupler Light Armor Plating High-powered Tractor Beam Light EM Pulse Cannon Assault Rifle Light Assault Rifle [Rating: 17] Favorites ----------- Power Ion Engine Engine Ion Engine Propulsion Light Treads Treads Light Treads Leg Aluminum Leg Wheel Compact Wheel Utility High-capacity Storage Unit Storage High-capacity Storage Unit Weapon Assault Rifle Energy Gun Improved EM Shotgun Ballistic Gun Assault Rifle Build | -11 -10 -10 -9 ------- Run | Scr Mat Min Mat Slots Evolved 2 | . . . 2 Power . | . . . . Propulsion 1 | . . . 1 Utility . | . . . . Weapon 1 | . . . 1 Parts Attached 26 | . 7 3 16 Power 3 | . . 1 2 Engine 3 | . . 1 2 Core . | . . . . Reactor . | . . . . Propulsion 12 | . 2 2 8 Treads 6 | . . . 6 Leg 4 | . 2 2 . Wheel 2 | . . . 2 Hover . | . . . . Flight . | . . . . Utility 3 | . 3 . . Device . | . . . . Storage 3 | . 3 . . Processor . | . . . . Hackware . | . . . . Protection . | . . . . Artifact . | . . . . Weapon 8 | . 2 . 6 Energy Gun 2 | . . . 2 Energy Cannon . | . . . . Ballistic Gun 6 | . 2 . 4 Ballistic Cannon . | . . . . Launcher . | . . . . Special Weapon . | . . . . Impact Weapon . | . . . . Slashing Weapon . | . . . . Piercing Weapon . | . . . . Special Melee Weapon . | . . . . Unidentified Prototypes 2 | . . . 2 Parts Lost . | . . . . Power . | . . . . Propulsion . | . . . . Utility . | . . . . Weapon . | . . . . Highest Loss Streak . | . . . . Average Slot Usage (%) 99 | . 99 100 99 Engine 12 | . 14 14 11 Treads 12 | . . . 29 Leg 15 | . 28 28 . Wheel 1 | . . . 3 Storage 25 | . 27 28 22 Energy Gun 1 | . 1 . 3 Ballistic Gun 27 | . 26 28 28 Naked Turns . | . . . . Heaviest Build 63 | 10 55 57 63 Greatest Support 60 | 20 20 20 60 Greatest Overweight (x) 5 | . 2 2 5 Average Overweight (x) 1 | . 1 2 2 Largest Inventory Capacity 18 | 6 18 18 18 Average Capacity 17 | 6 17 18 18 Most Carried 18 | 6 16 18 18 Average Carried 16 | 6 11 17 17 Final Capacity 18 | 6 18 18 18 Final Carried 18 | 6 16 18 18 Class Distribution -------------------- 55% | Mutant 30% | Scavenger-Gunner 10% | Gunner Dominant Class ---------------- Mutant | -10/Materials Mutant | -10/Mines Scavenger-Gunner | -9/Materials Resources | -11 -10 -10 -9 ----------- Run | Scr Mat Min Mat Matter Collected 1092 | 203 139 201 549 Remotely . | . . . . Salvage Created 1455 | 70 278 170 937 Parts 107 | 4 17 13 73 Haulers Intercepted 4 | . 1 . 3 Recyclers Shooed . | . . . . Parts Field Recycled . | . . . . Retrieved Matter . | . . . . Parts Self-Destructed . | . . . . Prevented . | . . . . Kills | -11 -10 -10 -9 ------- Run | Scr Mat Min Mat Combat Hostiles Destroyed 27 | . 5 3 19 Guns 26 | . 5 3 18 AOE 1 | . . . 1 Classes Destroyed 9 | 2 5 . 2 Worker 4 | . 1 1 2 Tunneler 2 | 1 . 1 . Hauler 4 | . 1 . 3 Recycler 1 | 1 . . . Operator 3 | . . . 3 Watcher 3 | . 1 . 2 Swarmer 9 | . 1 . 8 Grunt 15 | . 4 3 8 Sentry 3 | . . . 3 Best Kill Streak 5 | 2 5 2 4 Combat Bots Only 4 | . 4 2 4 Max Kills in Single Turn 2 | 1 1 1 2 Gunslinging 1 | . . . 1 Exploded 1 | . . . 1 Melee . | . . . . Uniques/NPCs Destroyed . | . . . . Combat | -11 -10 -10 -9 -------- Run | Scr Mat Min Mat Damage Taken 1326 | . 257 176 893 Core 267 | . 75 61 131 Absorbed by Shields . | . . . . Core Remaining (%) 72 | 100 . 45 . Volleys Fired 101 | 3 22 18 58 Largest 3 | 2 2 2 3 Hottest 88 | 70 40 40 88 Shots Fired 260 | 6 44 36 174 Gun 260 | 6 44 36 174 Cannon . | . . . . Launcher . | . . . . Special . | . . . . Kinetic 234 | 3 44 36 151 Thermal 3 | 3 . . . Explosive . | . . . . Electromagnetic 23 | . . . 23 Robot Hit Streak 20 | 5 8 6 20 Robot Miss Streak 3 | . 2 2 3 Penetration Max . | . . . . Secondary Targets 5 | . . 1 4 Max Gunslinging Chain 2 | . . 1 2 Shots Hit Robots 180 | 5 31 25 119 Core Hits 71 | 3 14 10 44 Critical Hits 3 | . 1 . 2 Critical Kills 1 | . 1 . . Critical Parts Destroyed 2 | . . . 2 Melee Attacks . | . . . . Impact . | . . . . Slashing . | . . . . Piercing . | . . . . Sneak Attacks . | . . . . Combat Hostiles . | . . . . Follow-up Attacks . | . . . . Damage Inflicted 2363 | 56 359 315 1633 Guns 2313 | 56 359 315 1583 Cannons . | . . . . Explosions 50 | . . . 50 Melee . | . . . . Ramming . | . . . . Kinetic 1910 | 18 359 315 1218 Thermal 88 | 38 . . 50 Explosive . | . . . . Electromagnetic 365 | . . . 365 Impact . | . . . . Slashing . | . . . . Piercing . | . . . . Highest Corruption . | . . . . Average Corruption . | . . . . Corruption Purged . | . . . . Overload Shots . | . . . . Overflow Damage . | . . . . Projectiles . | . . . . Explosions . | . . . . Melee . | . . . . Knockbacks . | . . . . Impact . | . . . . Kinetic . | . . . . Secondary . | . . . . Self-Inflicted Damage 79 | . . . 79 Shots 2 | . . . 2 Rammed . | . . . . Targets Rammed . | . . . . Kicked . | . . . . Crushed . | . . . . Highest Temperature 230 | 50 2 8 230 Average Temperature 29 | 26 2 3 33 Received Heat Transfer 414 | . 102 99 213 Siege Activations . | . . . . Robots Corrupted . | . . . . Combat Hostiles . | . . . . Parts Fried 1 | . . . 1 Impact Corruptions . | . . . . Robots Melted . | . . . . Combat Hostiles . | . . . . Parts Melted . | . . . . Heat Transferred 161 | 111 . . 50 Parts Sabotaged . | . . . . Parts Stolen . | . . . . Parts Stripped . | . . . . Power Chain Reactions 2 | . . . 2 Missiles Intercepted . | . . . . Alert | -11 -10 -10 -9 ------- Run | Scr Mat Min Mat Peak Influence 457 | 10 113 124 457 Initial 40 | . 6 40 . Average 120 | 6 45 69 196 Maximum Alert Level 2 | . . . 2 Low Security (%) 79 | 100 100 100 54 Level 1 18 | . . . 40 Level 2 2 | . . . 4 Level 3 . | . . . . Level 4 . | . . . . Level 5 . | . . . . High Security . | . . . . Max Security . | . . . . Squads Dispatched 4 | . . . 4 Investigation 1 | . . . 1 Extermination . | . . . . Reinforcement 3 | . . . 3 Assault . | . . . . Garrison . | . . . . Intercept . | . . . . Construction Impeded . | . . . . Haulers Reinforced . | . . . . Stealth | -11 -10 -10 -9 --------- Run | Scr Mat Min Mat Distress Signals 2 | . . . 2 Communications Jammed . | . . . . Distress Signals . | . . . . Times Spotted 50 | . 11 6 33 Peak Tracking Total 5 | . 4 2 5 Tactical Retreats 1 | . 1 . . Traps | -11 -10 -10 -9 ------- Run | Scr Mat Min Mat Traps Triggered 1 | . . . 1 Indirectly . | . . . . Trap Hack Attempts . | . . . . Triggered . | . . . . Disarmed . | . . . . Reprogrammed . | . . . . Reused . | . . . . Traps Extracted . | . . . . Installed . | . . . . Triggered . | . . . . Machines | -11 -10 -10 -9 ---------- Run | Scr Mat Min Mat Machines Disabled 5 | . . . 5 Max in Single Turn 1 | . . . 1 Machines Sabotaged . | . . . . Garrisons Compromised . | . . . . Overloaded Fab Kills . | . . . . Fab Network Shutdowns . | . . . . Hacking | -11 -10 -10 -9 --------- Run | Scr Mat Min Mat Machines Accessed 4 | . 1 1 2 Terminals 2 | . 1 1 . Fabricators . | . . . . Repair Stations 1 | . . . 1 Recycling Units . | . . . . Scanalyzers 1 | . . . 1 Garrison Access . | . . . . Total Hacks 16 | . 5 3 8 Successful 10 | . 3 1 6 Failed 6 | . 2 2 2 Catastrophic . | . . . . Database Lockouts . | . . . . Manual 8 | . 5 3 . Terminals 8 | . 5 3 . Fabricators . | . . . . Repair Stations 3 | . . . 3 Recycling Units . | . . . . Scanalyzers 5 | . . . 5 Garrison Access . | . . . . Terminal Hacks 2 | . 1 1 . Level Access Points 1 | . . 1 . Branch Access Points 1 | . 1 . . Fabricator Hacks . | . . . . Repair Station Hacks 2 | . . . 2 Scan Component 1 | . . . 1 Repair 1 | . . . 1 Recycling Unit Hacks . | . . . . Scanalyzer 4 | . . . 4 Insert Component 2 | . . . 2 Analyze 2 | . . . 2 Garrison Access Hacks . | . . . . Unauthorized Hacks 2 | . 2 . . Terminals 2 | . 2 . . Track 1 | . 1 . . Botnet 1 | . 1 . . Fabricators . | . . . . Repair Stations . | . . . . Recycling Units . | . . . . Scanalyzers . | . . . . Garrison Access . | . . . . Data Cores Recovered . | . . . . Used . | . . . . Hacking Detections 4 | . 1 1 2 Full Trace Events 1 | . . . 1 Feedback Events . | . . . . Feedback Blocked . | . . . . Robot Schematics Acquired . | . . . . Robots Built . | . . . . Matter . | . . . . Time . | . . . . Total Robot Build Rating . | . . . . Part Schematics Acquired 2 | . . . 2 Parts Built . | . . . . Matter . | . . . . Time . | . . . . Total Part Build Rating . | . . . . Parts Repaired 1 | . . . 1 Time 50 | . . . 50 Parts Recycled . | . . . . Recycled Matter . | . . . . Retrieved Matter . | . . . . Retrieved Components . | . . . . Parts Scanalyzed 2 | . . . 2 Part Schematics Acquired 2 | . . . 2 Parts Damaged . | . . . . Bothacking | -11 -10 -10 -9 ------------ Run | Scr Mat Min Mat Used RIF Installer . | . . . . Robots Hacked . | . . . . Non-combat . | . . . . Combat . | . . . . Robot Hacks Applied . | . . . . Relay Couplers Released . | . . . . Robots Rewired . | . . . . Allies Hacked . | . . . . Hacks Repelled . | . . . . Allies | -11 -10 -10 -9 -------- Run | Scr Mat Min Mat Total Allies 3 | . . 3 . Largest Group 3 | . . 3 2 Highest-Rated Group 40 | . . 40 32 Highest-Rated Ally 16 | . . 16 16 Total Orders . | . . . . Ally Attacks 29 | . . 18 11 Total Damage 397 | . . 251 146 Kills 7 | . . 3 4 Allies Corrupted . | . . . . Allies Melted . | . . . . Intel | -11 -10 -10 -9 ------- Run | Scr Mat Min Mat Robot Analysis Total . | . . . . Derelict Logs Recovered 2 | . . 2 . Drone Launches . | . . . . Drone Recoveries . | . . . . Exploration | -11 -10 -10 -9 ------------- Run | Scr Mat Min Mat Turns Passed 2734 | 20 513 988 1213 Spaces Moved 1290 | 10 234 510 536 Core . | . . . . Treads 325 | . . . 325 Legs 754 | 10 234 510 . Wheels 211 | . . . 211 Hover . | . . . . Flight . | . . . . Fastest Speed 120 | 120 120 180 130 Average Speed 170 | 120 176 180 160 Slowest Speed 220 | 120 180 180 220 Overloaded Moves . | . . . . Propulsion Burnouts . | . . . . Robots Hopped . | . . . . Cave-ins Triggered . | . . . . Exploration Rate (%) 44 | 2 52 80 45 Regions Visited 3 Branch Regions 1 Pre-discovered Areas 2 | . . 2 . Known Exits Taken 2 | . 1 1 . Unknown Exits Taken 1 | 1 . . . Scrap Searched 1 | . . 1 . Spaces Dug . | . . . . Terrain Destroyed 8 | . . . 8 Melee . | . . . . Projectile . | . . . . AOE 8 | . . . 8 Terrain Rammed . | . . . . Walls Destroyed . | . . . . Machines Disabled . | . . . . Actions | -11 -10 -10 -9 --------- Run | Scr Mat Min Mat Total 1622 | 12 288 545 777 Wait 150 | . 20 10 120 Move 1287 | 9 233 509 536 Hop . | . . . . Pick Up 27 | . 5 2 20 Fast Attach 4 | . 2 . 2 Attach 5 | . . . 5 Detach 1 | . . . 1 Swap 17 | . 5 3 9 Drop 30 | . 1 3 26 Fire 101 | 3 22 18 58 Melee . | . . . . Ram . | . . . . Kick . | . . . . Crush . | . . . . Escape Stasis . | . . . . Rewire . | . . . . Trap . | . . . . Miscellaneous . | . . . . Route ------- -11/Scrapyard -10/Materials (discovered 4 exits: *Mat x2 / *Min x2) -10/Mines (discovered 3 exits: *Mat x2 / [*Exi]) -9/Materials (discovered 2 exits: [*Mat] / [*Min]) History --------- Turn | Location | Event 1 | -11/Scrapyard | Discovered new exit (range 3) 21 | -11/Scrapyard | Entered Materials 51 | -10/Materials | Identified exit to Mines 180 | -10/Materials | Discovered new exit (range 15) 304 | -10/Materials | Build established: Mutant 360 | -10/Materials | Discovered new exit (range 16) 534 | -10/Materials | Entered Mines 628 | -10/Mines | Assisted by bots powering up and referring to "LRC-V3" 630 | -10/Mines | Learned Materials trap positions 643 | -10/Mines | Learned location of Zion (-7) 725 | -10/Mines | Identified exit to Materials 785 | -10/Mines | Learned location of Storage (-7) 868 | -10/Mines | Assembled infested the area 1127 | -10/Mines | Core integrity fell below 50% 1412 | -10/Mines | Discovered new exit (range 5) 1522 | -10/Mines | Entered Materials 1522 | -9/Materials | Accompanied by 2 allies 1522 | -9/Materials | Evolved 2 slots: Propulsion x1, Weapon x1 1523 | -9/Materials | Loaded intel: 8 trap records 2060 | -9/Materials | Repaired Cmb. Airjet 2079 | -9/Materials | Discovered new exit (range 15) 2117 | -9/Materials | Build established: Scavenger-Gunner 2317 | -9/Materials | Discovered new exit (range 15) 2735 | -9/Materials | Self-destructed Last Messages --------------- 02599_ G-34 Mercenary destroyed. 02601_ U-05 Engineer builds a Door. 02647_ S-10 Pest destroyed. 02652_ Switching to secondary target: S-10 Pest. 02666_ S-10 Pest destroyed. 02669_ Chain reaction triggered in Lgt. Ion Engine. 02669_ K-01 Serf destroyed. 02669_ Terminal disabled. 02675_ K-01 Serf collects debris. 02676_ Acquired 13 matter. 02679_ K-01 Serf collects debris. 02684_ Acquired 20 matter. 02696_ W-16 Scout destroyed. 02705_ K-01 Serf collects debris. 02708_ R-06 Scavenger collects Hover Unit. 02710_ K-01 Serf collects debris. 02711_ R-06 Scavenger collects Visual Processing Unit. 02713_ K-01 Serf collects debris. 02719_ R-06 Scavenger collects Signal Interpreter. 02721_ K-01 Serf collects debris. Map ----- +----------------------------------------------------+ | ?????????????????????????????????????????????????? | | ?????????????????????????????????????????????????? | | ?????????????????????????????????????????????????? | | ?????????????????????????????????????????????????? | | #????????????????????????????????????????????????? | | ##???????????????????????????????????????????????? | | "#???????????????????????????????????????????????? | | #???????????????????????????????????????????????? | | #???????????????????????????????????????????????? | | #????????????????????? ???????????????????????? | | #????????????????????# s???????????????????????? | | ##????????????????????# ???????????????????????? | | #?????????????????????# ???????????????????????? | | ??????????????????????# ???????????????????????? | | ??????????????????????# #??????????????????????? | | ??????????????????????# #??????????????????????? | | #######???????????????# #??????????????????????? | | = #???????????????# #??????????????????????? | | #???????????????+ +??????????????????????? | | """" #???????????????# #??????????????????????? | | """" #?????????###???# ####???????????????????? | | """" #????????? ???# # ??????????????? | | #????????? ??# # """ "???????????????? | | ###+###?????????""" ??# # """ Y???????????????? | | ??# #???????????"""" ?# # """ ""??????????????? | | ??# #####??????""""" ?# @# #?????????????? | | ??# !!#????? """"" # # """ #?????????????? | | ??# !!#????# """ # # """ #?????????????? | | ### ! !#????# + + """ #?????????????? | | !!#????# # # #?????????????? | | ] ]#????########## ########## ##??????????? | | * ! ]]#????????# ?????????? | | % #######????????# ?????????? | | [=#??????????????# ?????????? | | ^ #??????????????# ############??????????? | | ^ #?############## t #?????????????????????? | | #?# """T""" ## ###?????????????????????? | | #?# ## % #???????????????????????? | | !!#?# !! ## !u #???????????????????????? | | !=#?# """ !! # %[ #???????????????????????? | | [#?# """ ![ ## * #???????????????????????? | | #?# """ ## #????????????? ???????? | | #?# ! ## [ #????????????# ???????? | | #?######+######## #### #????????????# #????? | | #?????# #?????#=#??# #????????????# #???? | | ####### #?????# #??#%#????????????# #???? | | # + #?????# #??# #????????????# #???? | | /=# # #????## ##?# #????????????# #???# | | % # """?# #????#"="#?# #????????????# #???# | | # """ # ######"""### #????????????# #???# | +----------------------------------------------------+ Best States ------------- Heat Dissipation 28 Energy Generation 12 Energy Capacity 265 Matter Stores 300 Matter Capacity 300 Sight Range 16 Terrain Scan Density 10 Evasion (%) 40 Recoil Reduction 3 Item Schematics ----------------- Cmb. Airjet | -9/Materials | Scanalyzed Hacking Suite | -9/Materials | Scanalyzed Robot Schematics ------------------ None Fabricated ------------ Nothing Alien Tech Used ----------------- None Achievements -------------- None Challenges ------------ None Game ------ Seed SensorArchitectAutohacker Manual? 0 Play Time 00:15:26 Cumulative 242.0 hours Start 2021.03.02 @ 21:43:24 End 2021.03.02 @ 22:12:10 Sessions 1 Manual Loads 0 Difficulty Rogue Special Mode None Game No. 543 Rogue 543 Adventurer 0 Explorer 0 Win Type - Total 5 Types 4/0/0/1/0/0/0/0/0 Lore% 63 Gallery% 67 Achievement% 56 Wizard Run 0 Options --------- ASCII 0 Keyboard 0 Movement Numpad Keybinds 0 Fullscreen 1 Font 16/SmallcapsGlow Map View 75x55 Tactical HUD 1 Map Filters NONE Filters NONE Steam 1 RUN: 831b99f6-7267-40dc-8e22-b006159d931a